[Event "*** Titled Tuesday Blitz"]
[Site "Chess.com"]
[Date "2018.12.04"]
[Round "7"]
[White "pedromartinez91"]
[Black "Panchenko_Dmitry"]
[Result "1/2-1/2"]
[WhiteElo "2418"]
[BlackElo "2554"]
[TimeControl "180+2"]
[EndTime "14:36:31 PST"]
[Termination "Game drawn by agreement"]

1. e4 {[%clk 0:03:01.9]} 1... e5 {[%clk 0:03:00.8]} 2. Nf3 {[%clk 0:03:02.7]}
2... Nf6 {[%clk 0:03:01.8]} 3. Nxe5 {[%clk 0:02:59.8]} 3... d6 {[%clk
0:03:02.6]} 4. Nf3 {[%clk 0:03:01.2]} 4... Nxe4 {[%clk 0:03:03.6]} 5. d4 {[%clk
0:02:54.5]} 5... d5 {[%clk 0:03:04.3]} 6. Bd3 {[%clk 0:02:55.3]} 6... Be7 {[%clk
0:03:04.9]} 7. O-O {[%clk 0:02:54]} 7... Nc6 {[%clk 0:03:05.6]} 8. Nc3 {[%clk
0:02:54.5]} 8... Nxc3 {[%clk 0:03:05.3]} 9. bxc3 {[%clk 0:02:55.1]} 9... Bg4
{[%clk 0:03:03.2]} 10. Rb1 {[%clk 0:02:55.2]} 10... Rb8 {[%clk 0:03:02]} 11. Bf4
{[%clk 0:02:50.5]} 11... O-O {[%clk 0:02:59.8]} 12. Re1 {[%clk 0:02:37]} 12...
Bd6 {[%clk 0:02:56.4]} 13. Bxd6 {[%clk 0:02:33.4]} 13... Bxf3 {[%clk 0:02:38.9]}
14. Bxc7 {[%clk 0:01:26]} 14... Bxd1 {[%clk 0:02:38.9]} 15. Bxd8 {[%clk
0:01:26.2]} 15... Bxc2 {[%clk 0:02:39.9]} 16. Bxc2 {[%clk 0:01:26.3]} 16...
Rfxd8 {[%clk 0:02:40.1]} 17. Rb5 {[%clk 0:01:22.4]} 17... Kf8 {[%clk 0:02:35.4]}
18. Reb1 {[%clk 0:01:18.6]} 18... b6 {[%clk 0:02:34.5]} 19. Kf1 {[%clk 0:00:59]}
19... Rbc8 {[%clk 0:02:33.4]} 20. Bd3 {[%clk 0:00:42.2]} 20... Na5 {[%clk
0:02:24.6]} 21. Rc1 {[%clk 0:00:42.2]} 21... Ke7 {[%clk 0:02:19.2]} 22. Ke2
{[%clk 0:00:41.7]} 22... Kd6 {[%clk 0:02:19]} 23. Kd2 {[%clk 0:00:42.5]} 23...
Re8 {[%clk 0:02:16.5]} 24. a4 {[%clk 0:00:32]} 24... h6 {[%clk 0:02:16.1]} 25.
Rbb1 {[%clk 0:00:31.7]} 25... Nc4+ {[%clk 0:02:09.5]} 26. Bxc4 {[%clk
0:00:32.4]} 26... Rxc4 {[%clk 0:02:10.4]} 27. a5 {[%clk 0:00:31.9]} 27... bxa5
{[%clk 0:02:06.1]} 28. Ra1 {[%clk 0:00:28.6]} 28... a4 {[%clk 0:02:04.8]} 29.
Rcb1 {[%clk 0:00:30.1]} 29... Rec8 {[%clk 0:02:03.3]} 30. Ra3 {[%clk 0:00:30.7]}
30... R8c7 {[%clk 0:01:25]} 31. Rb5 {[%clk 0:00:30.7]} 31... a6 {[%clk
0:01:14.9]} 32. Ra5 {[%clk 0:00:30.3]} 32... R7c6 {[%clk 0:01:15.7]} 33. R5xa4
{[%clk 0:00:29.2]} 33... Rxa4 {[%clk 0:01:16.6]} 34. Rxa4 {[%clk 0:00:31.1]}
34... Rb6 {[%clk 0:01:16.4]} 1/2-1/2

[Event "*** Titled Tuesday Blitz"]
[Site "Chess.com"]
[Date "2018.12.04"]
[Round "7"]
[White "gemarin"]
[Black "tteshan"]
[Result "0-1"]
[WhiteElo "2037"]
[BlackElo "2138"]
[TimeControl "180+2"]
[EndTime "14:36:31 PST"]
[Termination "tteshan won on time"]

1. d4 {[%clk 0:03:01.9]} 1... d5 {[%clk 0:03:00.7]} 2. c4 {[%clk 0:02:59.7]}
2... dxc4 {[%clk 0:03:00.9]} 3. e3 {[%clk 0:02:42.9]} 3... Nf6 {[%clk
0:02:59.7]} 4. Bxc4 {[%clk 0:02:42.8]} 4... e6 {[%clk 0:02:56.2]} 5. Nf3 {[%clk
0:02:43.2]} 5... c5 {[%clk 0:02:53.4]} 6. O-O {[%clk 0:02:43.4]} 6... Nc6 {[%clk
0:02:54.4]} 7. Qe2 {[%clk 0:02:41.8]} 7... Be7 {[%clk 0:02:50.6]} 8. Rd1 {[%clk
0:02:41.7]} 8... cxd4 {[%clk 0:02:50.7]} 9. Nxd4 {[%clk 0:02:42]} 9... Nxd4
{[%clk 0:02:50.3]} 10. Rxd4 {[%clk 0:02:42.4]} 10... Qc7 {[%clk 0:02:49.5]} 11.
b3 {[%clk 0:02:38.1]} 11... O-O {[%clk 0:02:48.3]} 12. Bb2 {[%clk 0:02:39.1]}
12... Nd7 {[%clk 0:02:41.6]} 13. Nc3 {[%clk 0:02:37.7]} 13... a6 {[%clk
0:02:39.2]} 14. Rad1 {[%clk 0:02:37.6]} 14... Bf6 {[%clk 0:02:38.3]} 15. R4d2
{[%clk 0:02:36.8]} 15... b5 {[%clk 0:02:37.6]} 16. Qf3 {[%clk 0:01:32]} 16...
Rb8 {[%clk 0:02:30.3]} 17. Rxd7 {[%clk 0:00:26.7]} 17... Bxd7 {[%clk 0:02:29.3]}
18. Bf1 {[%clk 0:00:22.1]} 18... Bc6 {[%clk 0:02:13.1]} 19. Qh5 {[%clk
0:00:17.4]} 19... b4 {[%clk 0:02:09.6]} 20. Na4 {[%clk 0:00:16.8]} 20... Bxb2
{[%clk 0:02:06.3]} 21. Nxb2 {[%clk 0:00:17.7]} 21... g6 {[%clk 0:01:53.6]} 22.
Qh6 {[%clk 0:00:15.7]} 22... Qe5 {[%clk 0:01:50.1]} 23. Nc4 {[%clk 0:00:14.8]}
23... Qg7 {[%clk 0:01:49.6]} 24. Qf4 {[%clk 0:00:12.4]} 24... Bb5 {[%clk
0:01:47.3]} 25. Qd6 {[%clk 0:00:08.9]} 25... Bxc4 {[%clk 0:01:35.3]} 26. Bxc4
{[%clk 0:00:09]} 26... a5 {[%clk 0:01:33.5]} 27. Qc7 {[%clk 0:00:06.5]} 27...
Ra8 {[%clk 0:01:26.7]} 28. h3 {[%clk 0:00:05.4]} 28... Rfc8 {[%clk 0:01:25.9]}
29. Qd7 {[%clk 0:00:04.5]} 29... Qf8 {[%clk 0:01:24.2]} 0-1

[Event "*** Titled Tuesday Blitz"]
[Site "Chess.com"]
[Date "2018.12.04"]
[Round "7"]
[White "amiralfio"]
[Black "ENEASZ"]
[Result "1-0"]
[WhiteElo "2440"]
[BlackElo "2582"]
[TimeControl "180+2"]
[EndTime "14:36:31 PST"]
[Termination "amiralfio won by resignation"]

1. d4 {[%clk 0:03:01.9]} 1... Nf6 {[%clk 0:02:59.9]} 2. Nf3 {[%clk 0:03:03]}
2... d6 {[%clk 0:03:00.7]} 3. c4 {[%clk 0:03:04]} 3... g6 {[%clk 0:03:02.3]} 4.
Nc3 {[%clk 0:03:05.4]} 4... Bg7 {[%clk 0:03:03.9]} 5. e4 {[%clk 0:03:06.8]} 5...
O-O {[%clk 0:03:05.6]} 6. h3 {[%clk 0:03:08.1]} 6... e5 {[%clk 0:03:07.3]} 7. d5
{[%clk 0:03:08.4]} 7... a5 {[%clk 0:03:07.3]} 8. g4 {[%clk 0:03:08.2]} 8... Na6
{[%clk 0:03:08.2]} 9. Be3 {[%clk 0:03:09.1]} 9... Qe8 {[%clk 0:03:05.7]} 10. Nd2
{[%clk 0:03:03.7]} 10... Nd7 {[%clk 0:03:02.3]} 11. h4 {[%clk 0:03:03]} 11...
Ndc5 {[%clk 0:03:03.1]} 12. h5 {[%clk 0:03:03.5]} 12... f5 {[%clk 0:03:03.9]}
13. hxg6 {[%clk 0:03:03.7]} 13... hxg6 {[%clk 0:03:05.5]} 14. gxf5 {[%clk
0:03:04.4]} 14... gxf5 {[%clk 0:03:06.5]} 15. Qf3 {[%clk 0:02:46.4]} 15... fxe4
{[%clk 0:02:56]} 16. Qg3 {[%clk 0:02:44.3]} 16... Nb4 {[%clk 0:02:50.7]} 17.
O-O-O {[%clk 0:02:28.7]} 17... Bf5 {[%clk 0:02:33.1]} 18. Bh3 {[%clk 0:02:27.1]}
18... Ncd3+ {[%clk 0:01:37.6]} 19. Kb1 {[%clk 0:02:26.4]} 19... Nxf2 {[%clk
0:01:39.5]} 20. Bxf2 {[%clk 0:01:48.5]} 20... Qg6 {[%clk 0:01:05.1]} 21. Bxf5
{[%clk 0:01:45.7]} 21... Qxf5 {[%clk 0:01:05.6]} 22. Be3 {[%clk 0:01:46.4]}
22... Rf7 {[%clk 0:01:04.2]} 23. a3 {[%clk 0:01:42.6]} 23... Nd3 {[%clk
0:01:05.1]} 24. Rdg1 {[%clk 0:01:29.8]} 24... c6 {[%clk 0:01:04.4]} 25. Ndxe4
{[%clk 0:01:27.8]} 25... Nf4 {[%clk 0:01:04.9]} 26. Ka2 {[%clk 0:01:23.6]} 26...
b5 {[%clk 0:01:04.1]} 27. dxc6 {[%clk 0:01:21.5]} 27... b4 {[%clk 0:00:51.6]}
28. Nd5 {[%clk 0:01:04.8]} 28... Nxd5 {[%clk 0:00:33.5]} 29. Nxd6 {[%clk
0:00:57.6]} 29... Qc2 {[%clk 0:00:33.8]} 30. Rh8+ {[%clk 0:00:55.7]} 30... Kxh8
{[%clk 0:00:32.3]} 31. Nxf7+ {[%clk 0:00:55.8]} 1-0

[Event "*** Titled Tuesday Blitz"]
[Site "Chess.com"]
[Date "2018.12.04"]
[Round "7"]
[White "Paparama_1917"]
[Black "FMJoseHerrera"]
[Result "0-1"]
[WhiteElo "2579"]
[BlackElo "2563"]
[TimeControl "180+2"]
[EndTime "14:36:56 PST"]
[Termination "FMJoseHerrera won by resignation"]

1. e4 {[%clk 0:03:01.9]} 1... c5 {[%clk 0:03:00.4]} 2. f4 {[%clk 0:03:02.3]}
2... e6 {[%clk 0:03:02]} 3. Nf3 {[%clk 0:03:03.2]} 3... b6 {[%clk 0:03:03.6]} 4.
d3 {[%clk 0:03:01.5]} 4... Bb7 {[%clk 0:03:04.7]} 5. Qe2 {[%clk 0:03:01.3]} 5...
Qc7 {[%clk 0:03:06.3]} 6. g3 {[%clk 0:03:02.3]} 6... d6 {[%clk 0:03:07.3]} 7.
Bg2 {[%clk 0:03:03.4]} 7... Nd7 {[%clk 0:03:08.6]} 8. c4 {[%clk 0:03:02]} 8...
Ngf6 {[%clk 0:03:09.9]} 9. Nc3 {[%clk 0:03:03.2]} 9... Be7 {[%clk 0:03:11.2]}
10. e5 {[%clk 0:02:56.9]} 10... dxe5 {[%clk 0:02:58]} 11. fxe5 {[%clk
0:02:56.4]} 11... Ng4 {[%clk 0:02:57.7]} 12. Bf4 {[%clk 0:02:54.5]} 12... a6
{[%clk 0:02:56.8]} 13. h3 {[%clk 0:02:25.3]} 13... Nh6 {[%clk 0:02:55.8]} 14. g4
{[%clk 0:02:25]} 14... O-O-O {[%clk 0:01:52.6]} 15. a4 {[%clk 0:02:24.6]} 15...
f5 {[%clk 0:01:16]} 16. g5 {[%clk 0:01:51.1]} 16... Nf7 {[%clk 0:01:15.5]} 17.
O-O {[%clk 0:01:36.5]} 17... g6 {[%clk 0:01:11.9]} 18. a5 {[%clk 0:01:36.5]}
18... bxa5 {[%clk 0:01:11.4]} 19. Rfe1 {[%clk 0:00:38.7]} 19... h6 {[%clk
0:01:11.9]} 20. gxh6 {[%clk 0:00:39.1]} 20... g5 {[%clk 0:01:13.4]} 21. Bg3
{[%clk 0:00:33.4]} 21... Rdg8 {[%clk 0:01:12.3]} 22. Nd5 {[%clk 0:00:23.4]}
22... Qd8 {[%clk 0:00:42.6]} 23. Nxe7+ {[%clk 0:00:24.3]} 23... Qxe7 {[%clk
0:00:44.5]} 24. d4 {[%clk 0:00:21.3]} 24... g4 {[%clk 0:00:45.2]} 25. hxg4
{[%clk 0:00:21.3]} 25... Rxg4 {[%clk 0:00:46]} 26. Bh2 {[%clk 0:00:18.1]} 26...
Rhg8 {[%clk 0:00:46.4]} 27. Rxa5 {[%clk 0:00:18.7]} 27... Rxg2+ {[%clk
0:00:32.3]} 28. Qxg2 {[%clk 0:00:20.6]} 28... Rxg2+ {[%clk 0:00:33.9]} 29. Kxg2
{[%clk 0:00:22.5]} 29... Ng5 {[%clk 0:00:35.5]} 0-1

[Event "*** Titled Tuesday Blitz"]
[Site "Chess.com"]
[Date "2018.12.04"]
[Round "7"]
[White "StoreySniper"]
[Black "WPWPWP-2015"]
[Result "0-1"]
[WhiteElo "2394"]
[BlackElo "2284"]
[TimeControl "180+2"]
[EndTime "14:36:59 PST"]
[Termination "WPWPWP-2015 won by checkmate"]

1. g3 {[%clk 0:03:01.9]} 1... d5 {[%clk 0:02:59.4]} 2. Bg2 {[%clk 0:03:03.3]}
2... Nf6 {[%clk 0:02:59.9]} 3. c4 {[%clk 0:03:04.9]} 3... c6 {[%clk 0:03:00.6]}
4. Nf3 {[%clk 0:03:05.2]} 4... Bg4 {[%clk 0:03:00.5]} 5. O-O {[%clk 0:03:06.4]}
5... Nbd7 {[%clk 0:03:00.9]} 6. b3 {[%clk 0:03:07.3]} 6... e6 {[%clk 0:03:00.8]}
7. Bb2 {[%clk 0:03:08.6]} 7... Bd6 {[%clk 0:03:01.8]} 8. d4 {[%clk 0:03:09.8]}
8... O-O {[%clk 0:03:02]} 9. Nc3 {[%clk 0:03:10.6]} 9... Bxf3 {[%clk 0:03:01.5]}
10. Bxf3 {[%clk 0:03:09]} 10... Qe7 {[%clk 0:03:00.7]} 11. Re1 {[%clk
0:03:07.8]} 11... Ba3 {[%clk 0:03:00.4]} 12. Bxa3 {[%clk 0:03:03.7]} 12... Qxa3
{[%clk 0:03:00.1]} 13. e4 {[%clk 0:03:04.2]} 13... dxe4 {[%clk 0:03:00.6]} 14.
Nxe4 {[%clk 0:03:05.2]} 14... Nxe4 {[%clk 0:03:01.4]} 15. Bxe4 {[%clk
0:03:05.3]} 15... Nf6 {[%clk 0:03:02.2]} 16. Bf3 {[%clk 0:02:54.4]} 16... Rad8
{[%clk 0:03:01.4]} 17. Qd2 {[%clk 0:02:47]} 17... Rd7 {[%clk 0:02:57.6]} 18.
Rad1 {[%clk 0:02:44.6]} 18... Rfd8 {[%clk 0:02:57]} 19. g4 {[%clk 0:02:41.5]}
19... h6 {[%clk 0:02:56.3]} 20. h4 {[%clk 0:02:35.8]} 20... Rxd4 {[%clk
0:02:31.5]} 21. Qxd4 {[%clk 0:02:36.6]} 21... Rxd4 {[%clk 0:02:32.5]} 22. Rxd4
{[%clk 0:02:38.5]} 22... g5 {[%clk 0:02:29.1]} 23. hxg5 {[%clk 0:02:38.1]} 23...
hxg5 {[%clk 0:02:29.7]} 24. Re2 {[%clk 0:02:30]} 24... Qa5 {[%clk 0:02:24.4]}
25. Kg2 {[%clk 0:02:18.3]} 25... Kf8 {[%clk 0:02:21.7]} 26. Rd1 {[%clk
0:02:05.8]} 26... Ke7 {[%clk 0:02:19.8]} 27. Rd4 {[%clk 0:01:56.8]} 27... Nd7
{[%clk 0:02:08.5]} 28. Red2 {[%clk 0:01:47.4]} 28... Ne5 {[%clk 0:02:07.4]} 29.
Be2 {[%clk 0:01:48.4]} 29... Ng6 {[%clk 0:01:36.3]} 30. Rd7+ {[%clk 0:01:46.1]}
30... Kf6 {[%clk 0:01:36.5]} 31. Rc2 {[%clk 0:00:35.4]} 31... Qe5 {[%clk
0:01:30.9]} 32. Kg1 {[%clk 0:00:23.4]} 32... Qe4 {[%clk 0:01:09.6]} 33. Rdd2
{[%clk 0:00:20.6]} 33... Nh4 {[%clk 0:00:54.2]} 34. Rc3 {[%clk 0:00:19.4]} 34...
Qg2# {[%clk 0:00:50.9]} 0-1

[Event "*** Titled Tuesday Blitz"]
[Site "Chess.com"]
[Date "2018.12.04"]
[Round "7"]
[White "Oligan22"]
[Black "Jenia84"]
[Result "1-0"]
[WhiteElo "2295"]
[BlackElo "2214"]
[TimeControl "180+2"]
[EndTime "14:37:02 PST"]
[Termination "Oligan22 won by resignation"]

1. e4 {[%clk 0:03:01.9]} 1... c5 {[%clk 0:02:56.9]} 2. Nf3 {[%clk 0:03:03]} 2...
Nc6 {[%clk 0:02:57.4]} 3. d4 {[%clk 0:03:03.9]} 3... cxd4 {[%clk 0:02:58.2]} 4.
Nxd4 {[%clk 0:03:05.8]} 4... Nf6 {[%clk 0:02:56.9]} 5. Nc3 {[%clk 0:03:06.6]}
5... e5 {[%clk 0:02:57]} 6. Ndb5 {[%clk 0:03:07.8]} 6... d6 {[%clk 0:02:57.5]}
7. Bg5 {[%clk 0:03:08.1]} 7... a6 {[%clk 0:02:56.1]} 8. Na3 {[%clk 0:03:09.3]}
8... b5 {[%clk 0:02:54.8]} 9. Nd5 {[%clk 0:03:09.9]} 9... Be7 {[%clk 0:02:55.1]}
10. Bxf6 {[%clk 0:03:10.8]} 10... Bxf6 {[%clk 0:02:55.7]} 11. c4 {[%clk
0:03:11.6]} 11... b4 {[%clk 0:02:52.3]} 12. Nc2 {[%clk 0:03:12.5]} 12... a5
{[%clk 0:02:53.1]} 13. g3 {[%clk 0:03:02.9]} 13... O-O {[%clk 0:02:53]} 14. Bg2
{[%clk 0:03:00.8]} 14... Bg5 {[%clk 0:02:53.2]} 15. O-O {[%clk 0:03:01.4]} 15...
Be6 {[%clk 0:02:52.5]} 16. b3 {[%clk 0:03:01.3]} 16... Ne7 {[%clk 0:02:40.7]}
17. Nce3 {[%clk 0:02:56.4]} 17... Nxd5 {[%clk 0:02:35.5]} 18. Nxd5 {[%clk
0:02:56.2]} 18... Ra7 {[%clk 0:02:34.2]} 19. f4 {[%clk 0:02:45.5]} 19... exf4
{[%clk 0:02:31.2]} 20. gxf4 {[%clk 0:02:47.4]} 20... Bxd5 {[%clk 0:01:38.1]} 21.
Qxd5 {[%clk 0:02:44.8]} 21... Bf6 {[%clk 0:01:38.7]} 22. Rad1 {[%clk 0:02:43.9]}
22... a4 {[%clk 0:01:38.1]} 23. Qxd6 {[%clk 0:02:29.6]} 23... Qxd6 {[%clk
0:01:33.2]} 24. Rxd6 {[%clk 0:02:31.5]} 24... axb3 {[%clk 0:01:33.8]} 25. axb3
{[%clk 0:02:29.6]} 25... Ra3 {[%clk 0:01:23.6]} 26. Rb1 {[%clk 0:02:15.2]} 26...
Rd8 {[%clk 0:01:07.7]} 27. e5 {[%clk 0:02:06.9]} 27... Be7 {[%clk 0:01:06.3]}
28. Rxd8+ {[%clk 0:01:46.7]} 28... Bxd8 {[%clk 0:01:06.8]} 29. c5 {[%clk
0:01:48.1]} 29... Kf8 {[%clk 0:00:56.3]} 30. Rd1 {[%clk 0:01:32.9]} 30... Ke7
{[%clk 0:00:55.1]} 31. Bc6 {[%clk 0:01:28.2]} 31... Ba5 {[%clk 0:00:49.4]} 32.
f5 {[%clk 0:01:12.4]} 32... g6 {[%clk 0:00:33.5]} 33. Rd7+ {[%clk 0:01:09.7]}
33... Kf8 {[%clk 0:00:33.9]} 34. f6 {[%clk 0:00:56.2]} 34... Rxb3 {[%clk
0:00:18.6]} 35. Re7 {[%clk 0:00:57.4]} 1-0

[Event "*** Titled Tuesday Blitz"]
[Site "Chess.com"]
[Date "2018.12.04"]
[Round "7"]
[White "TregubovP"]
[Black "StanislavNovikov"]
[Result "0-1"]
[WhiteElo "2533"]
[BlackElo "2492"]
[TimeControl "180+2"]
[EndTime "14:37:07 PST"]
[Termination "StanislavNovikov won by resignation"]

1. d4 {[%clk 0:03:01.9]} 1... g6 {[%clk 0:03:00.1]} 2. Nf3 {[%clk 0:03:01.5]}
2... Bg7 {[%clk 0:03:01.2]} 3. g3 {[%clk 0:03:02.9]} 3... d6 {[%clk 0:03:01.1]}
4. Bg2 {[%clk 0:03:02.8]} 4... Nf6 {[%clk 0:03:02.1]} 5. O-O {[%clk 0:03:03.9]}
5... O-O {[%clk 0:03:02.5]} 6. c4 {[%clk 0:03:05.2]} 6... c6 {[%clk 0:03:03.1]}
7. Nc3 {[%clk 0:03:06.2]} 7... Qb6 {[%clk 0:03:03.3]} 8. h3 {[%clk 0:03:04.9]}
8... Qa6 {[%clk 0:03:03.2]} 9. b3 {[%clk 0:02:57.5]} 9... b5 {[%clk 0:03:03.6]}
10. cxb5 {[%clk 0:02:57.1]} 10... cxb5 {[%clk 0:03:04.3]} 11. Bb2 {[%clk
0:02:49.4]} 11... Bb7 {[%clk 0:03:02.9]} 12. a3 {[%clk 0:02:49.8]} 12... Ne4
{[%clk 0:02:44.1]} 13. Qd3 {[%clk 0:02:41.5]} 13... Nxc3 {[%clk 0:02:42.7]} 14.
Bxc3 {[%clk 0:02:42]} 14... Nd7 {[%clk 0:02:43.6]} 15. e4 {[%clk 0:02:34.4]}
15... b4 {[%clk 0:02:36.6]} 16. Qxa6 {[%clk 0:02:24.4]} 16... Bxa6 {[%clk
0:02:37.7]} 17. axb4 {[%clk 0:02:18.1]} 17... Bxf1 {[%clk 0:02:37.5]} 18. Bxf1
{[%clk 0:02:19.2]} 18... Rfc8 {[%clk 0:02:35.2]} 19. Be1 {[%clk 0:02:17.3]}
19... Nb6 {[%clk 0:02:28.3]} 20. Bd3 {[%clk 0:02:06.1]} 20... Rc7 {[%clk
0:02:24.1]} 21. Kf1 {[%clk 0:02:03.8]} 21... Rac8 {[%clk 0:02:24.2]} 22. Bd2
{[%clk 0:02:05.4]} 22... e6 {[%clk 0:02:12.6]} 23. Ke2 {[%clk 0:02:03.6]} 23...
d5 {[%clk 0:02:10.2]} 24. e5 {[%clk 0:02:01.5]} 24... Bf8 {[%clk 0:02:11]} 25.
h4 {[%clk 0:01:59.9]} 25... Rb8 {[%clk 0:02:06.4]} 26. b5 {[%clk 0:01:51.1]}
26... Rcb7 {[%clk 0:01:49.3]} 27. h5 {[%clk 0:01:50.2]} 27... Na8 {[%clk
0:01:45.7]} 28. Nh2 {[%clk 0:01:25.5]} 28... Nc7 {[%clk 0:01:33.4]} 29. Ng4
{[%clk 0:01:25.2]} 29... Be7 {[%clk 0:01:29.8]} 30. b6 {[%clk 0:00:57.8]} 30...
axb6 {[%clk 0:01:28.5]} 31. Nf6+ {[%clk 0:00:54.4]} 31... Bxf6 {[%clk
0:01:28.3]} 32. exf6 {[%clk 0:00:55.7]} 32... Ra8 {[%clk 0:01:24.9]} 33. Rc1
{[%clk 0:00:53.6]} 33... Ne8 {[%clk 0:01:24.4]} 34. Bg5 {[%clk 0:00:53.7]} 34...
Rc7 {[%clk 0:01:24.1]} 35. Rh1 {[%clk 0:00:35.2]} 35... Ra2+ {[%clk 0:01:23.1]}
36. Ke3 {[%clk 0:00:34.5]} 36... Rc3 {[%clk 0:01:22.7]} 37. hxg6 {[%clk
0:00:28.9]} 37... hxg6 {[%clk 0:01:21.1]} 38. g4 {[%clk 0:00:28.7]} 38... Rb2
{[%clk 0:01:16.3]} 39. Ra1 {[%clk 0:00:23.9]} 39... Rbxb3 {[%clk 0:01:11.4]} 40.
Ra8 {[%clk 0:00:24.5]} 40... Rxd3+ {[%clk 0:01:11.9]} 41. Kf4 {[%clk 0:00:25.3]}
41... Rxd4+ {[%clk 0:01:09.8]} 0-1

[Event "*** Titled Tuesday Blitz"]
[Site "Chess.com"]
[Date "2018.12.04"]
[Round "7"]
[White "Andrew-FB00"]
[Black "m3alam"]
[Result "0-1"]
[WhiteElo "1794"]
[BlackElo "2169"]
[TimeControl "180+2"]
[EndTime "14:37:12 PST"]
[Termination "m3alam won by resignation"]

1. e4 {[%clk 0:03:01.9]} 1... g6 {[%clk 0:03:00.5]} 2. d4 {[%clk 0:03:01.6]}
2... Bg7 {[%clk 0:03:02.4]} 3. Nf3 {[%clk 0:03:00.8]} 3... c5 {[%clk 0:03:04.1]}
4. c3 {[%clk 0:02:55.9]} 4... d5 {[%clk 0:03:01.8]} 5. e5 {[%clk 0:02:53.2]}
5... Nc6 {[%clk 0:03:01.5]} 6. Bb5 {[%clk 0:02:49.1]} 6... Bg4 {[%clk
0:03:01.2]} 7. O-O {[%clk 0:02:45.8]} 7... Qb6 {[%clk 0:02:58.4]} 8. Bxc6+
{[%clk 0:02:42.8]} 8... bxc6 {[%clk 0:02:59.5]} 9. h3 {[%clk 0:02:43.2]} 9...
Bxf3 {[%clk 0:02:58.1]} 10. gxf3 {[%clk 0:02:34.9]} 10... cxd4 {[%clk
0:02:58.7]} 11. cxd4 {[%clk 0:02:35.2]} 11... Nh6 {[%clk 0:02:56.9]} 12. Nc3
{[%clk 0:02:28.6]} 12... Nf5 {[%clk 0:02:56.5]} 13. Ne2 {[%clk 0:02:23.5]} 13...
O-O {[%clk 0:01:54.4]} 14. b3 {[%clk 0:02:20.2]} 14... c5 {[%clk 0:01:54.2]} 15.
dxc5 {[%clk 0:02:15.8]} 15... Qxc5 {[%clk 0:01:53.9]} 16. Bb2 {[%clk 0:02:12.3]}
16... Rac8 {[%clk 0:01:54.6]} 17. Rc1 {[%clk 0:02:09.6]} 17... Qa5 {[%clk
0:01:44.5]} 18. a3 {[%clk 0:02:06.1]} 18... e6 {[%clk 0:01:45.1]} 19. b4 {[%clk
0:02:00.7]} 19... Qd8 {[%clk 0:01:40.9]} 20. Qd3 {[%clk 0:01:52.3]} 20... Qg5+
{[%clk 0:01:40.8]} 21. Kh2 {[%clk 0:01:49.5]} 21... Nh4 {[%clk 0:01:32.7]} 22.
Rg1 {[%clk 0:01:39.7]} 22... Bxe5+ {[%clk 0:01:32.5]} 23. Bxe5 {[%clk 0:01:29]}
23... Qxe5+ {[%clk 0:01:33.3]} 24. f4 {[%clk 0:01:26.4]} 24... Qh5 {[%clk
0:01:20.8]} 25. Rg3 {[%clk 0:01:09.3]} 25... Rxc1 {[%clk 0:01:12.2]} 26. Nxc1
{[%clk 0:01:09.2]} 26... Rc8 {[%clk 0:01:05.3]} 27. Ne2 {[%clk 0:01:08.4]} 27...
Qf5 {[%clk 0:00:51.9]} 28. Qd4 {[%clk 0:00:47.3]} 28... Qc2 {[%clk 0:00:41.5]}
29. Re3 {[%clk 0:00:36.5]} 29... Qxe2 {[%clk 0:00:38.1]} 30. Rxe2 {[%clk
0:00:35.4]} 30... Nf3+ {[%clk 0:00:37.8]} 0-1

[Event "*** Titled Tuesday Blitz"]
[Site "Chess.com"]
[Date "2018.12.04"]
[Round "7"]
[White "aa175"]
[Black "BillForster"]
[Result "0-1"]
[WhiteElo "1911"]
[BlackElo "1729"]
[TimeControl "180+2"]
[EndTime "14:37:15 PST"]
[Termination "BillForster won on time"]

1. e4 {[%clk 0:03:01.9]} 1... c5 {[%clk 0:03:00.1]} 2. b4 {[%clk 0:02:38.7]}
2... d5 {[%clk 0:02:36.3]} 3. e5 {[%clk 0:02:16.4]} 3... Bf5 {[%clk 0:02:16.1]}
4. bxc5 {[%clk 0:02:13.5]} 4... e6 {[%clk 0:02:08.2]} 5. d4 {[%clk 0:02:05.5]}
5... Nc6 {[%clk 0:02:01.6]} 6. Nf3 {[%clk 0:01:43.7]} 6... h5 {[%clk 0:01:52.5]}
7. Bd3 {[%clk 0:01:32]} 7... Nh6 {[%clk 0:01:46]} 8. Bxh6 {[%clk 0:01:19]} 8...
Bxd3 {[%clk 0:01:36]} 9. Qxd3 {[%clk 0:01:08.2]} 9... Rxh6 {[%clk 0:01:31.7]}
10. O-O {[%clk 0:00:57.6]} 10... Be7 {[%clk 0:01:19.7]} 11. h3 {[%clk
0:00:48.4]} 11... g5 {[%clk 0:01:09.3]} 12. Nbd2 {[%clk 0:00:45.2]} 12... Kd7
{[%clk 0:01:04.2]} 13. c3 {[%clk 0:00:45.4]} 13... Qg8 {[%clk 0:00:58.8]} 14.
Rab1 {[%clk 0:00:43.5]} 14... Kc7 {[%clk 0:00:56.6]} 15. Qb5 {[%clk 0:00:39.3]}
15... Rb8 {[%clk 0:00:52.4]} 16. g4 {[%clk 0:00:30.1]} 16... hxg4 {[%clk
0:00:50.8]} 17. hxg4 {[%clk 0:00:32]} 17... Qh7 {[%clk 0:00:46.9]} 18. Kg2
{[%clk 0:00:32.4]} 18... f5 {[%clk 0:00:30.4]} 19. exf6 {[%clk 0:00:29.2]} 19...
Bxf6 {[%clk 0:00:27.7]} 20. Rh1 {[%clk 0:00:31.1]} 20... a6 {[%clk 0:00:18.4]}
21. Qb6+ {[%clk 0:00:07.3]} 21... Kc8 {[%clk 0:00:19.5]} 22. Rxh6 {[%clk
0:00:06.5]} 22... Qxh6 {[%clk 0:00:19.9]} 23. Rh1 {[%clk 0:00:08.4]} 23... Qg7
{[%clk 0:00:17.8]} 24. Rh5 {[%clk 0:00:03.6]} 24... Kd7 {[%clk 0:00:13.5]} 25.
Nb3 {[%clk 0:00:02.3]} 25... Nd8 {[%clk 0:00:12.4]} 0-1